{"text_format":"3","workbook":"xlsx","n_sheets":2,"sheets":["list","data"],"not_rendered":{"defined_names":8},"read":"whole","date_system":"1900"}

{"sheet":"list","index":0,"n_rows":24,"n_cols":20,"rows_kept":24}
["№","Код участника","Название ОУ","СНИЛС","Фамилия","Имя","Отчество","Пол","Дата рождения","Участник с ОВЗ","Класс","Класс участия","Первичный балл","Добавлено по итогам апелляций","Итоговый балл","Макс. Балл","Статус","Призер регионального / республиканского этапа прошлого года","Учитель","Место работы учителя"]
[1,"381001_16967044211_40","МБОУ \"СОШ №1\"",16967044211,"Федорова","Анастасия","Александровна","ж","02.12.2011","нет",8,8,38,null,{"$f":"M2+N2","v":38},60,"призер",null,"Ерофеева Ирина Евгеньевна","МБОУ \"СОШ №1\""]
[2,"381001_16361083048_40","МБОУ \"СОШ №1\"",16361083048,"Коротина","Калерия","Олеговна","ж","26.12.2010","нет",8,8,14,null,{"$f":"M3+N3","v":14},60,"участник",null,"Ерофеева Ирина Евгеньевна","МБОУ \"СОШ №1\""]
[3,"381001_16718897225_40","МБОУ \"СОШ №1\"",16718897225,"Донскова","Диана","Сергеевна","ж","03.06.2011","нет",8,8,36,null,{"$f":"M4+N4","v":36},60,"призер",null,"Ерофеева Ирина Евгеньевна","МБОУ \"СОШ №1\""]
[4,"381002_16385354590_40","МБОУ \"СОШ №2\" г. Мензелинска РТ",16385354590,"Гарипова","Милана","Руслановна","ж","26.01.2011","нет",8,8,8,null,8,60,"участник",null,"Салимуллина Ольга Владимировна","МБОУ \"СОШ №2\" г. Мензелинска РТ"]
[5,"381002_16827912304_40","МБОУ \"СОШ №2\" г. Мензелинска РТ",16827912304,"Липина","Евгения","Евгеньевна","ж","18.09.2011","нет",8,8,12,null,12,60,"участник",null,"Попова Елена Сергеевна.","МБОУ \"СОШ №2\" г. Мензелинска РТ"]
[6,"381003_16718898833_40","МБОУ \"СОШ №3\"",16718898833,"Коротина","Кристина","Романовна","ж","16.06.2011","нет",8,8,17,null,17,60,"участник",null,"Ильина Светлана Валерьевна","МБОУ \"СОШ №3\""]
[7,"383017_18168133276_40","МБОУ \"Гимназия\" г.Мензелинска РТ",18168133276,"Батталов","Самат","Илгизович","м","25.11.2011","нет",8,8,20,null,20,60,"участник",null,"Имамутдинов Василь Васимович","МБОУ \"Гимназия\" г.Мензелинска РТ"]
[8,"383017_16559282001_40","МБОУ \"Гимназия\" г.Мензелинска РТ",16559282001,"Газизов","Загир","Фаннурович","м","18.03.2011","нет",8,8,6,null,6,60,"участник",null,"Имамутдинов Василь Васимович","МБОУ \"Гимназия\" г.Мензелинска РТ"]
[9,"381001_16131880547_40","МБОУ \"СОШ №1\"",16131880547,"Логачева","Софья","Ивановна","ж","21.07.2010","нет",9,9,9,null,9,70,"участник",null,"Ерофеева Ирина Евгеньевна","МБОУ \"СОШ №1\""]
[10,"381001_15859547731_40","МБОУ \"СОШ №1\"",15859547731,"Гарипова","Диана","Ренатовна","ж","22.03.2010","нет",9,9,36,null,36,70,"призер",null,"Ерофеева Ирина Евгеньевна","МБОУ \"СОШ №1\""]
[11,"381002_16214354637_40","МБОУ \"СОШ №2\" г. Мензелинска РТ",16214354637,"Вильданова","Айгуль","Ильдаровна","ж","14.09.2010","нет",9,9,36,null,36,70,"призер",null,"Попова Елена Сергеевна.","МБОУ \"СОШ №2\" г. Мензелинска РТ"]
[12,"381003_16361082753_40","МБОУ \"СОШ №3\"",16361082753,"Семенов","Кирилл","Геннадьевич","м","17.12.2010","нет",9,9,37,null,37,70,"призер",null,"Ильина Светлана Валерьевна","МБОУ \"СОШ №3\""]
[13,"383017_16175884600_40","МБОУ \"Гимназия\" г.Мензелинска РТ",16175884600,"Лобанова","Карина","Олеговна","ж","24.08.2010","нет",9,9,21,null,21,70,"участник",null,"Имамутдинов Василь Васимович","МБОУ \"Гимназия\" г.Мензелинска РТ"]
[14,"383017_16950314678_40","МБОУ \"Гимназия\" г.Мензелинска РТ",16950314678,"Тимергазина","Гузель","Ильясовна","ж","25.05.2010","нет",9,9,19,null,19,70,"участник",null,"Имамутдинов Василь Васимович","МБОУ \"Гимназия\" г.Мензелинска РТ"]
[15,"384015_16139069365_40","МБОУ \"Татарскомушугинская СОШ им.К.А.Смирновой\"",16139069365,"Хайдарова","Камиля","Азгамовна","ж","21.07.2010","нет",9,9,10,null,10,70,"участник",null,"Кабиров Дамир Раисович","МБОУ \"Татарскомушугинская СОШ им.К.А.Смирновой\""]
[16,"384016_17196760707_40","МБОУ \"Урусовская ООШ имени Р.Закирова\"",17196760707,"Загиева","Айгуль","Ильгизовна","ж","18.05.2010","нет",9,9,11,null,11,70,"участник",null,"Талипова Танзиля Хамадулловна","МБОУ \"Урусовская ООШ имени Р.Закирова\""]
[17,"384016_16030987452_40","МБОУ \"Урусовская ООШ имени Р.Закирова\"",16030987452,"Маулина","Диляра","Азатовна","ж","12.05.2010","нет",9,9,7,null,7,70,"участник",null,"Талипова Танзиля Хамадулловна","МБОУ \"Урусовская ООШ имени Р.Закирова\""]
[18,"381001_15795595739_40","МБОУ \"СОШ №1\"",15795595739,"Галиева","Руфина","Раефовна","ж","08.03.2009","нет",10,10,22,null,22,70,"участник",null,"Ерофеева Ирина Евгеньевна","МБОУ \"СОШ №1\""]
[19,"381001_17215846671_40","МБОУ \"СОШ №1\"",17215846671,"Хазиев","Амир","Ильсурович","м","05.11.2009","нет",10,10,36,null,36,70,"призер",null,"Ерофеева Ирина Евгеньевна","МБОУ \"СОШ №1\""]
[20,"381002_15960716999_40","МБОУ \"СОШ №2\" г. Мензелинска РТ",15960716999,"Хныкин","Кирилл","Евгеньевич","м","03.10.2008","нет",10,10,23,null,23,70,"участник",null,"Салимуллина Ольга Владимировна","МБОУ \"СОШ №2\" г. Мензелинска РТ"]
[21,"381003_17804699210_40","МБОУ \"СОШ №3\"",17804699210,"Гатина ","Алсу","Ринатовна","ж","18.09.2009","нет",10,10,35,null,35,70,"призер",null,"Ильина Светлана Валерьевна","МБОУ \"СОШ №3\""]
[22,"383017_15668670212_40","МБОУ \"Гимназия\" г.Мензелинска РТ",15668670212,"Галиева","Камила","Ильнаровна","ж","18.06.2009","нет",10,10,37,null,37,70,"призер",null,"Имамутдинов Василь Васимович","МБОУ \"Гимназия\" г.Мензелинска РТ"]
[23,"381003_15676517099_40","МБОУ \"СОШ №3\"",15676517099,"Абубакирова","Лилия","Ульфатовна","ж","23.09.2008","нет",11,11,21,null,21,75,"участник",null,"Ильина Светлана Валерьевна","МБОУ \"СОШ №3\""]

{"sheet":"data","index":1,"n_rows":25,"n_cols":10,"rows_kept":25}
[{"$nulls":6},"1 - Техника, технология и техническое творчество","2 - Культура дома, дизайн и технологии","3 - Робототехника","4 - Информационная безопасность"]
["1 - Техника, технологии и техническое творчество","1.1  Практика по ручной деревообработке",{"$nulls":4},"1.1 Практика по ручной деревообработке","2.1 Ручная обработка швейного изделия или узла","3.1 Робототехника","4.1 Не предусмотрена"]
["2 - Культура дома, дизайн и технологии","1.2 Практика по механической деревообработке",{"$nulls":4},"1.2 Практика по механической деревообработке","2.2 Механическая обработка швейного изделия или узла + Моделирование"]
["3 - Робототехника","1.3 Практика по ручной металлообработке",{"$nulls":4},"1.3 Практика по ручной металлообработке","2.3 Обработка швейного изделия или узла на швейно-вышивальном оборудовании + Моделирование"]
["4 - Информационная безопасность","1.4 Практика по механической металлообработке",{"$nulls":4},"1.4 Практика по механической металлообработке","2.4 3D-моделирование и печать"]
[null,"1.5 Электрорадиотехника",{"$nulls":4},"1.5 Электрорадиотехника","2.5 Практика по работе на лазерно-гравировальном станке"]
[null,"1.6 3D-моделирование и печать",{"$nulls":4},"1.6 3D-моделирование и печать","2.6 Промышленный дизайн"]
[null,"1.7 Практика по работе на лазерно-гравировальном станке",{"$nulls":4},"1.7 Практика по работе на лазерно-гравировальном станке"]
[null,"1.8 Промышленный дизайн",{"$nulls":4},"1.8 Промышленный дизайн"]
[null,"2.1 Ручная обработка швейного изделия или узла"]
[null,"2.2 Механическая обработка швейного изделия или узла + Моделирование"]
[null,"2.3 Обработка швейного изделия или узла на швейно-вышивальном оборудовании + Моделирование"]
[null,"2.4 3D-моделирование и печать"]
[null,"2.5 Практика по работе на лазерно-гравировальном станке"]
[null,"2.6 Промышленный дизайн"]
[null,"3.1 Робототехника"]
[null,"4.1 Не предусмотрена"]
[]
[]
[]
[]
[]
["участник"]
["призер",null,"да","да",null,"м"]
["победитель",null,null,"нет",null,"ж"]